[Event "Late-Titled-Tuesday-Blitz-February-06-2024"]
[Site "Chess.com"]
[Date "2024.02.06"]
[Round "9"]
[White "VladimirKramnik"]
[Black "AlexeiShirov"]
[Result "0-1"]
[WhiteElo "2910"]
[BlackElo "2819"]
[TimeControl "180+1"]
[EndTime "15:45:01 PST"]
[Termination "AlexeiShirov won on time"]

1. e4 {[%clk 0:02:41.6]} 1... e5 {[%clk 0:02:59.6]} 2. Nf3 {[%clk 0:02:41.5]}
2... Nc6 {[%clk 0:02:59.5]} 3. g3 {[%clk 0:02:41.3]} 3... Nf6 {[%clk 0:02:54]}
4. d3 {[%clk 0:02:41.6]} 4... d5 {[%clk 0:02:53.6]} 5. exd5 {[%clk 0:02:41]}
5... Nxd5 {[%clk 0:02:52.6]} 6. Bg2 {[%clk 0:02:41.4]} 6... Be7 {[%clk
0:02:52.4]} 7. O-O {[%clk 0:02:41.9]} 7... O-O {[%clk 0:02:52.1]} 8. Re1 {[%clk
0:02:42.5]} 8... Bf6 {[%clk 0:02:37.5]} 9. Nbd2 {[%clk 0:02:29.3]} 9... Bg4
{[%clk 0:02:30.7]} 10. h3 {[%clk 0:02:25]} 10... Bh5 {[%clk 0:02:28.2]} 11. c3
{[%clk 0:02:19.8]} 11... Re8 {[%clk 0:02:18.6]} 12. a4 {[%clk 0:02:10.4]} 12...
Bg6 {[%clk 0:02:12.6]} 13. Ne4 {[%clk 0:02:07.9]} 13... Be7 {[%clk 0:02:11.9]}
14. a5 {[%clk 0:02:05.5]} 14... a6 {[%clk 0:01:44.7]} 15. Qb3 {[%clk 0:02:02.1]}
15... Rb8 {[%clk 0:01:44.5]} 16. Nh4 {[%clk 0:01:47.7]} 16... Bxh4 {[%clk
0:01:41.7]} 17. gxh4 {[%clk 0:01:48.2]} 17... Nf4 {[%clk 0:01:29.8]} 18. Bxf4
{[%clk 0:01:46.5]} 18... exf4 {[%clk 0:01:28.9]} 19. d4 {[%clk 0:01:24]} 19...
Qxh4 {[%clk 0:01:11.5]} 20. Nd2 {[%clk 0:01:23.5]} 20... Bh5 {[%clk 0:01:06]}
21. Qxb7 {[%clk 0:01:12.5]} 21... Ne7 {[%clk 0:00:46.4]} 22. Qxa6 {[%clk
0:00:54]} 22... Rxb2 {[%clk 0:00:42.9]} 23. Qd3 {[%clk 0:00:48.1]} 23... Bg6
{[%clk 0:00:31.8]} 24. Qe2 {[%clk 0:00:47.9]} 24... Bh5 {[%clk 0:00:29.4]} 25.
Nf3 {[%clk 0:00:39.3]} 25... Rxe2 {[%clk 0:00:18.8]} 26. Nxh4 {[%clk 0:00:39.7]}
26... Nc8 {[%clk 0:00:15.4]} 27. Rxe2 {[%clk 0:00:36.2]} 27... Bxe2 {[%clk
0:00:14.5]} 28. Bc6 {[%clk 0:00:30.2]} 28... Rd8 {[%clk 0:00:12.7]} 29. Re1
{[%clk 0:00:28.7]} 29... Ba6 {[%clk 0:00:11.6]} 30. Nf5 {[%clk 0:00:28]} 30...
Kf8 {[%clk 0:00:10.5]} 31. Rb1 {[%clk 0:00:20.2]} 31... g6 {[%clk 0:00:10.3]}
32. Nh4 {[%clk 0:00:18.3]} 32... Ne7 {[%clk 0:00:10]} 33. Be4 {[%clk 0:00:15.9]}
33... g5 {[%clk 0:00:09.1]} 34. Nf3 {[%clk 0:00:14.6]} 34... f5 {[%clk
0:00:08.7]} 35. Bc2 {[%clk 0:00:12.3]} 35... h6 {[%clk 0:00:08]} 36. Ne5 {[%clk
0:00:12.2]} 36... Rd5 {[%clk 0:00:08.2]} 37. Rb8+ {[%clk 0:00:10.6]} 37... Kg7
{[%clk 0:00:07.8]} 38. Re8 {[%clk 0:00:09.5]} 38... Nc8 {[%clk 0:00:05.7]} 39.
Bb3 {[%clk 0:00:08.4]} 39... Rxa5 {[%clk 0:00:05.2]} 40. Rg8+ {[%clk 0:00:08]}
40... Kh7 {[%clk 0:00:04.9]} 41. Rd8 {[%clk 0:00:06.8]} 41... Nb6 {[%clk
0:00:01.9]} 0-1

[Event "Late-Titled-Tuesday-Blitz-February-06-2024"]
[Site "Chess.com"]
[Date "2024.02.06"]
[Round "9"]
[White "Yushko_Olga"]
[Black "morte-negra"]
[Result "1-0"]
[WhiteElo "2213"]
[BlackElo "2011"]
[TimeControl "180+1"]
[EndTime "15:45:15 PST"]
[Termination "Yushko_Olga won on time"]

1. d4 {[%clk 0:02:54.5]} 1... Nf6 {[%clk 0:02:56.4]} 2. c4 {[%clk 0:02:54.4]}
2... g6 {[%clk 0:02:55.7]} 3. Nc3 {[%clk 0:02:54.1]} 3... Bg7 {[%clk 0:02:56]}
4. Nf3 {[%clk 0:02:54.4]} 4... O-O {[%clk 0:02:53.3]} 5. Bg5 {[%clk 0:02:55.1]}
5... d6 {[%clk 0:02:51.6]} 6. e3 {[%clk 0:02:55.6]} 6... Nbd7 {[%clk 0:02:52.1]}
7. Be2 {[%clk 0:02:56.2]} 7... e5 {[%clk 0:02:52.1]} 8. O-O {[%clk 0:02:55.9]}
8... b6 {[%clk 0:02:46.4]} 9. Qc2 {[%clk 0:02:55.8]} 9... Bb7 {[%clk 0:02:46.8]}
10. Rfd1 {[%clk 0:02:55.5]} 10... Qe7 {[%clk 0:02:43.8]} 11. dxe5 {[%clk
0:02:49.3]} 11... Nxe5 {[%clk 0:02:41.1]} 12. Nd5 {[%clk 0:02:44.4]} 12... Bxd5
{[%clk 0:02:22.8]} 13. cxd5 {[%clk 0:02:45.2]} 13... h6 {[%clk 0:02:19.5]} 14.
Bh4 {[%clk 0:02:39.1]} 14... g5 {[%clk 0:02:19.4]} 15. Bg3 {[%clk 0:02:38.9]}
15... Nh5 {[%clk 0:02:04.7]} 16. Nd4 {[%clk 0:02:32.4]} 16... Nxg3 {[%clk
0:02:02.6]} 17. hxg3 {[%clk 0:02:33.3]} 17... g4 {[%clk 0:01:48]} 18. Rac1
{[%clk 0:02:30.6]} 18... Rac8 {[%clk 0:01:42.7]} 19. Qf5 {[%clk 0:02:29.3]}
19... Qf6 {[%clk 0:01:38.1]} 20. Ba6 {[%clk 0:02:22.9]} 20... c5 {[%clk
0:01:11.8]} 21. dxc6 {[%clk 0:02:03]} 21... Rc7 {[%clk 0:01:10.4]} 22. Bb7
{[%clk 0:01:48.2]} 22... a6 {[%clk 0:00:41.7]} 23. Qxf6 {[%clk 0:01:44.7]} 23...
Bxf6 {[%clk 0:00:39.8]} 24. Nf5 {[%clk 0:01:45.6]} 24... Nxc6 {[%clk 0:00:32.1]}
25. Rxc6 {[%clk 0:01:38.8]} 25... Rxb7 {[%clk 0:00:31.5]} 26. Rdxd6 {[%clk
0:01:35.2]} 26... Bxb2 {[%clk 0:00:29]} 27. Rxh6 {[%clk 0:01:33.7]} 27... Bg7
{[%clk 0:00:24.7]} 28. Nxg7 {[%clk 0:01:24.3]} 28... Kxg7 {[%clk 0:00:25]} 29.
Rxb6 {[%clk 0:01:24.5]} 29... Rxb6 {[%clk 0:00:23.4]} 30. Rxb6 {[%clk
0:01:23.9]} 30... Ra8 {[%clk 0:00:23.3]} 31. a4 {[%clk 0:01:22.7]} 31... a5
{[%clk 0:00:23.4]} 32. Kf1 {[%clk 0:01:22.6]} 32... f6 {[%clk 0:00:21.8]} 33.
Ke2 {[%clk 0:01:22.7]} 33... Kg6 {[%clk 0:00:22.2]} 34. Rb5 {[%clk 0:01:19.8]}
34... f5 {[%clk 0:00:20.5]} 35. Kd3 {[%clk 0:01:19.5]} 35... Rd8+ {[%clk
0:00:17.1]} 36. Kc3 {[%clk 0:01:18.5]} 36... Rc8+ {[%clk 0:00:16.6]} 37. Kb3
{[%clk 0:01:17.1]} 37... Rc1 {[%clk 0:00:16.4]} 38. Rxa5 {[%clk 0:01:14.1]}
38... Rf1 {[%clk 0:00:17]} 39. Kc3 {[%clk 0:01:04.4]} 39... Rxf2 {[%clk
0:00:17.2]} 40. Kd4 {[%clk 0:01:04.7]} 40... Rxg2 {[%clk 0:00:17.6]} 41. Ra8
{[%clk 0:01:01.1]} 41... Rxg3 {[%clk 0:00:16.9]} 42. a5 {[%clk 0:01:01.7]} 42...
Rg1 {[%clk 0:00:16.2]} 43. a6 {[%clk 0:00:58.1]} 43... Ra1 {[%clk 0:00:16.8]}
44. Ke5 {[%clk 0:00:55.6]} 44... Ra5+ {[%clk 0:00:15.5]} 45. Kf4 {[%clk
0:00:55.6]} 45... Kf6 {[%clk 0:00:13.8]} 46. a7 {[%clk 0:00:51.1]} 46... Ra4+
{[%clk 0:00:13.9]} 47. Kg3 {[%clk 0:00:50.6]} 47... Kg7 {[%clk 0:00:14.3]} 48.
Kh4 {[%clk 0:00:49.2]} 48... Ra5 {[%clk 0:00:11.5]} 49. Kg3 {[%clk 0:00:44]}
49... Ra4 {[%clk 0:00:11.3]} 50. Kg2 {[%clk 0:00:44.2]} 50... Ra5 {[%clk
0:00:10.9]} 51. Kf2 {[%clk 0:00:43.8]} 51... Ra4 {[%clk 0:00:11.3]} 52. Kg3
{[%clk 0:00:44.2]} 52... Ra5 {[%clk 0:00:11.4]} 53. Kf4 {[%clk 0:00:44.7]} 53...
g3 {[%clk 0:00:03.7]} 54. Kxg3 {[%clk 0:00:44.6]} 54... Ra4 {[%clk 0:00:04.3]}
55. Kf3 {[%clk 0:00:45.1]} 55... Ra5 {[%clk 0:00:01.5]} 56. Kf4 {[%clk
0:00:45.5]} 56... Ra3 {[%clk 0:00:01.1]} 57. Kxf5 {[%clk 0:00:44.1]} 57... Ra5+
{[%clk 0:00:01.1]} 58. Kf4 {[%clk 0:00:43.9]} 58... Ra4+ {[%clk 0:00:01.2]} 59.
e4 {[%clk 0:00:44.3]} 1-0

[Event "Late-Titled-Tuesday-Blitz-February-06-2024"]
[Site "Chess.com"]
[Date "2024.02.06"]
[Round "9"]
[White "Horokoskii"]
[Black "N_I_Chess"]
[Result "1/2-1/2"]
[WhiteElo "2177"]
[BlackElo "2334"]
[TimeControl "180+1"]
[EndTime "15:45:21 PST"]
[Termination "Game drawn - insufficient material"]

1. d4 {[%clk 0:02:58.3]} 1... Nf6 {[%clk 0:02:59.5]} 2. c4 {[%clk 0:02:57.5]}
2... d5 {[%clk 0:02:59.8]} 3. cxd5 {[%clk 0:02:56.6]} 3... Nxd5 {[%clk 0:03:00]}
4. Nc3 {[%clk 0:02:55.7]} 4... Nxc3 {[%clk 0:02:49.2]} 5. bxc3 {[%clk
0:02:56.6]} 5... e5 {[%clk 0:02:49.7]} 6. g3 {[%clk 0:02:48.5]} 6... exd4 {[%clk
0:02:44.7]} 7. Qxd4 {[%clk 0:02:47.2]} 7... Nc6 {[%clk 0:02:38.7]} 8. Qxd8+
{[%clk 0:02:33.7]} 8... Nxd8 {[%clk 0:02:39.6]} 9. Bg2 {[%clk 0:02:34.1]} 9...
Be6 {[%clk 0:02:28.9]} 10. Bg5 {[%clk 0:02:27.6]} 10... c6 {[%clk 0:02:11.4]}
11. Nf3 {[%clk 0:02:20.1]} 11... Bd5 {[%clk 0:02:03.1]} 12. O-O {[%clk 0:02:20]}
12... Ne6 {[%clk 0:02:01.7]} 13. Bd2 {[%clk 0:02:17.3]} 13... Bc5 {[%clk
0:01:57.3]} 14. e3 {[%clk 0:01:59.2]} 14... Rd8 {[%clk 0:01:49.4]} 15. Nd4
{[%clk 0:01:59.2]} 15... Bxg2 {[%clk 0:01:44.3]} 16. Kxg2 {[%clk 0:01:59.2]}
16... Bb6 {[%clk 0:01:32.9]} 17. Rad1 {[%clk 0:01:56]} 17... Nc5 {[%clk
0:01:28.4]} 18. Bc1 {[%clk 0:01:51.9]} 18... O-O {[%clk 0:01:25.4]} 19. h4
{[%clk 0:01:50.5]} 19... Ne4 {[%clk 0:01:19.7]} 20. Bb2 {[%clk 0:01:44]} 20...
Nd6 {[%clk 0:01:13.6]} 21. Ba3 {[%clk 0:01:40.9]} 21... c5 {[%clk 0:00:46.7]}
22. Nb3 {[%clk 0:01:10.4]} 22... Ne4 {[%clk 0:00:44.3]} 23. Kf3 {[%clk 0:01:09]}
23... Nxc3 {[%clk 0:00:42.3]} 24. Rxd8 {[%clk 0:01:09.3]} 24... Rxd8 {[%clk
0:00:41.9]} 25. Bxc5 {[%clk 0:01:09.1]} 25... Bxc5 {[%clk 0:00:41.4]} 26. Nxc5
{[%clk 0:01:10]} 26... b6 {[%clk 0:00:38.3]} 27. Ne4 {[%clk 0:01:09.2]} 27...
Nxe4 {[%clk 0:00:34.9]} 28. Kxe4 {[%clk 0:01:10.1]} 28... Rd2 {[%clk 0:00:22.6]}
29. a4 {[%clk 0:00:59.6]} 29... Ra2 {[%clk 0:00:20.6]} 30. Rc1 {[%clk 0:00:50]}
30... Rxa4+ {[%clk 0:00:20.6]} 31. Kf5 {[%clk 0:00:49]} 31... Ra5+ {[%clk
0:00:17]} 32. Kf4 {[%clk 0:00:46.1]} 32... g6 {[%clk 0:00:17.4]} 33. Rc7 {[%clk
0:00:45.3]} 33... Kg7 {[%clk 0:00:17.9]} 34. e4 {[%clk 0:00:44.9]} 34... h5
{[%clk 0:00:17.6]} 35. f3 {[%clk 0:00:44.5]} 35... b5 {[%clk 0:00:16.5]} 36. Rb7
{[%clk 0:00:44.2]} 36... a6 {[%clk 0:00:16.6]} 37. g4 {[%clk 0:00:44.8]} 37...
hxg4 {[%clk 0:00:16.2]} 38. fxg4 {[%clk 0:00:45.7]} 38... Ra1 {[%clk 0:00:16.7]}
39. Kg5 {[%clk 0:00:44.1]} 39... Re1 {[%clk 0:00:13.6]} 40. Kf4 {[%clk
0:00:43.8]} 40... Rf1+ {[%clk 0:00:12.8]} 41. Ke5 {[%clk 0:00:42.5]} 41... Rh1
{[%clk 0:00:12.6]} 42. Ra7 {[%clk 0:00:39.7]} 42... Rxh4 {[%clk 0:00:12.9]} 43.
Rxa6 {[%clk 0:00:39.3]} 43... Rxg4 {[%clk 0:00:13.4]} 44. Rb6 {[%clk 0:00:39.8]}
44... Rg1 {[%clk 0:00:13]} 45. Kf4 {[%clk 0:00:37]} 45... Rb1 {[%clk 0:00:13.3]}
46. Ke5 {[%clk 0:00:36.6]} 46... b4 {[%clk 0:00:06.4]} 47. Kd4 {[%clk
0:00:36.7]} 47... g5 {[%clk 0:00:06.1]} 48. e5 {[%clk 0:00:34.7]} 48... b3
{[%clk 0:00:02.9]} 49. Kc3 {[%clk 0:00:33.4]} 49... g4 {[%clk 0:00:02.5]} 50. e6
{[%clk 0:00:32.8]} 50... fxe6 {[%clk 0:00:02]} 51. Rxe6 {[%clk 0:00:33.5]} 51...
g3 {[%clk 0:00:01.6]} 52. Re3 {[%clk 0:00:32]} 52... Kf6 {[%clk 0:00:01.1]} 53.
Rxg3 {[%clk 0:00:30.3]} 53... Rf1 {[%clk 0:00:01.8]} 54. Kxb3 {[%clk 0:00:28.8]}
54... Rf5 {[%clk 0:00:02.7]} 55. Rc3 {[%clk 0:00:28.7]} 55... Ke5 {[%clk
0:00:02.7]} 56. Rc5+ {[%clk 0:00:28.2]} 56... Kf6 {[%clk 0:00:03.6]} 57. Rc6+
{[%clk 0:00:28.4]} 57... Kg5 {[%clk 0:00:04.5]} 58. Rc4 {[%clk 0:00:27.6]} 58...
Rf3+ {[%clk 0:00:04.8]} 59. Rc3 {[%clk 0:00:27]} 59... Rf5 {[%clk 0:00:05.7]}
60. Kb4 {[%clk 0:00:26.6]} 60... Rf4+ {[%clk 0:00:06.6]} 61. Rc4 {[%clk
0:00:27.1]} 61... Kg4 {[%clk 0:00:07.5]} 62. Rxf4+ {[%clk 0:00:27.1]} 62... Kxf4
{[%clk 0:00:08.4]} 1/2-1/2

[Event "Late-Titled-Tuesday-Blitz-February-06-2024"]
[Site "Chess.com"]
[Date "2024.02.06"]
[Round "9"]
[White "Igor_Lysyj"]
[Black "brm72"]
[Result "1-0"]
[WhiteElo "2871"]
[BlackElo "2641"]
[TimeControl "180+1"]
[EndTime "15:45:24 PST"]
[Termination "Igor_Lysyj won by checkmate"]

1. d4 {[%clk 0:03:00]} 1... e6 {[%clk 0:02:59.9]} 2. c4 {[%clk 0:02:57.7]} 2...
Nf6 {[%clk 0:03:00.2]} 3. Nf3 {[%clk 0:02:57.2]} 3... c5 {[%clk 0:02:59.7]} 4.
d5 {[%clk 0:02:56.3]} 4... exd5 {[%clk 0:03:00.4]} 5. cxd5 {[%clk 0:02:56.8]}
5... d6 {[%clk 0:03:01.1]} 6. Nc3 {[%clk 0:02:56.6]} 6... g6 {[%clk 0:03:01.6]}
7. h3 {[%clk 0:02:56.6]} 7... Bg7 {[%clk 0:02:57.8]} 8. e4 {[%clk 0:02:56.3]}
8... O-O {[%clk 0:02:58.2]} 9. Be3 {[%clk 0:02:56.5]} 9... Re8 {[%clk
0:02:50.4]} 10. Bd3 {[%clk 0:02:55.8]} 10... c4 {[%clk 0:02:35.5]} 11. Bc2
{[%clk 0:02:54]} 11... b5 {[%clk 0:02:33.3]} 12. Nxb5 {[%clk 0:02:51.5]} 12...
Qa5+ {[%clk 0:02:10.3]} 13. Nc3 {[%clk 0:02:50.3]} 13... Nxe4 {[%clk 0:02:08.7]}
14. Bxe4 {[%clk 0:02:45.6]} 14... Rxe4 {[%clk 0:01:54.9]} 15. O-O {[%clk
0:02:43.5]} 15... Rxe3 {[%clk 0:01:42.8]} 16. fxe3 {[%clk 0:02:43.1]} 16... Qb6
{[%clk 0:01:42.5]} 17. Qd2 {[%clk 0:02:35.3]} 17... Nd7 {[%clk 0:01:33.6]} 18.
Kh1 {[%clk 0:02:28.1]} 18... Rb8 {[%clk 0:01:21.5]} 19. Rab1 {[%clk 0:02:26.6]}
19... Nc5 {[%clk 0:01:18.4]} 20. Ng5 {[%clk 0:02:16.9]} 20... Rb7 {[%clk
0:00:51.5]} 21. Qf2 {[%clk 0:01:26]} 21... Nd3 {[%clk 0:00:22.7]} 22. Qh4 {[%clk
0:01:25.1]} 22... h6 {[%clk 0:00:21.1]} 23. Nge4 {[%clk 0:01:14.6]} 23... Bf5
{[%clk 0:00:18.1]} 24. Nf6+ {[%clk 0:00:53.7]} 24... Kh8 {[%clk 0:00:18.1]} 25.
Ne8 {[%clk 0:00:35.8]} 25... Be5 {[%clk 0:00:15.9]} 26. Qxh6+ {[%clk 0:00:34.3]}
26... Kg8 {[%clk 0:00:16.2]} 27. e4 {[%clk 0:00:21.4]} 27... Nf2+ {[%clk
0:00:10.4]} 28. Rxf2 {[%clk 0:00:21.4]} 28... Qxf2 {[%clk 0:00:11.3]} 29. exf5
{[%clk 0:00:21.8]} 29... Rxb2 {[%clk 0:00:07.5]} 30. Rg1 {[%clk 0:00:16.6]}
30... Qg3 {[%clk 0:00:06.3]} 31. Nf6+ {[%clk 0:00:12.3]} 31... Bxf6 {[%clk
0:00:04.8]} 32. Ne4 {[%clk 0:00:12.4]} 32... Qh4 {[%clk 0:00:03.6]} 33. Qc1
{[%clk 0:00:10.5]} 33... Re2 {[%clk 0:00:02.6]} 34. Nxf6+ {[%clk 0:00:10.1]}
34... Qxf6 {[%clk 0:00:02.5]} 35. Qxc4 {[%clk 0:00:10.8]} 35... Re5 {[%clk
0:00:02]} 36. fxg6 {[%clk 0:00:10.9]} 36... fxg6 {[%clk 0:00:02.1]} 37. Qc8+
{[%clk 0:00:10.6]} 37... Kg7 {[%clk 0:00:02.6]} 38. Qc7+ {[%clk 0:00:10.4]}
38... Re7 {[%clk 0:00:03.1]} 39. Qa5 {[%clk 0:00:10.3]} 39... Re3 {[%clk
0:00:02.8]} 40. Qxa7+ {[%clk 0:00:09.8]} 40... Re7 {[%clk 0:00:03]} 41. Qa5
{[%clk 0:00:09.7]} 41... Qh4 {[%clk 0:00:02.5]} 42. Qc3+ {[%clk 0:00:09]} 42...
Kh7 {[%clk 0:00:02.6]} 43. Rf1 {[%clk 0:00:08.6]} 43... Re5 {[%clk 0:00:01.7]}
44. Rf7+ {[%clk 0:00:08.3]} 44... Kh6 {[%clk 0:00:02.4]} 45. Qc1+ {[%clk
0:00:08.3]} 45... g5 {[%clk 0:00:02.3]} 46. Rf1 {[%clk 0:00:05.5]} 46... Kg6
{[%clk 0:00:02.5]} 47. Qc2+ {[%clk 0:00:05.6]} 47... Kh6 {[%clk 0:00:02.9]} 48.
Qc6 {[%clk 0:00:05.6]} 48... Kg7 {[%clk 0:00:01.3]} 49. Qxd6 {[%clk 0:00:05.5]}
49... Qe4 {[%clk 0:00:01.4]} 50. Qd7+ {[%clk 0:00:05.3]} 50... Kh6 {[%clk
0:00:01.5]} 51. Rf6+ {[%clk 0:00:04.9]} 51... Kh5 {[%clk 0:00:02]} 52. Qf7+
{[%clk 0:00:04.5]} 52... Kh4 {[%clk 0:00:02.1]} 53. Rf1 {[%clk 0:00:04.3]} 53...
Kg3 {[%clk 0:00:01.8]} 54. Qf2# {[%clk 0:00:04.1]} 1-0

[Event "Late-Titled-Tuesday-Blitz-February-06-2024"]
[Site "Chess.com"]
[Date "2024.02.06"]
[Round "9"]
[White "only_strong_moves"]
[Black "Rawnsdale"]
[Result "0-1"]
[WhiteElo "2649"]
[BlackElo "2541"]
[TimeControl "180+1"]
[EndTime "15:45:25 PST"]
[Termination "Rawnsdale won by resignation"]

1. e4 {[%clk 0:02:58.8]} 1... c6 {[%clk 0:02:59.5]} 2. d4 {[%clk 0:02:58.7]}
2... d5 {[%clk 0:02:59.5]} 3. Nc3 {[%clk 0:02:59.6]} 3... dxe4 {[%clk
0:02:59.8]} 4. Nxe4 {[%clk 0:03:00.5]} 4... Nf6 {[%clk 0:03:00.6]} 5. Nxf6+
{[%clk 0:03:00.7]} 5... exf6 {[%clk 0:03:01.5]} 6. Bf4 {[%clk 0:03:01.1]} 6...
Bd6 {[%clk 0:03:00.1]} 7. Qd2 {[%clk 0:03:00.6]} 7... O-O {[%clk 0:02:56.3]} 8.
O-O-O {[%clk 0:03:00]} 8... Be6 {[%clk 0:02:50]} 9. Kb1 {[%clk 0:02:56.4]} 9...
a5 {[%clk 0:02:49.4]} 10. c4 {[%clk 0:02:46.1]} 10... a4 {[%clk 0:02:46.9]} 11.
a3 {[%clk 0:02:42.9]} 11... b5 {[%clk 0:02:36.5]} 12. d5 {[%clk 0:02:35.9]}
12... Bxf4 {[%clk 0:02:20.4]} 13. Qxf4 {[%clk 0:02:34.3]} 13... bxc4 {[%clk
0:02:19.1]} 14. d6 {[%clk 0:02:15.6]} 14... c3 {[%clk 0:02:11]} 15. Bc4 {[%clk
0:02:05.4]} 15... Qb6 {[%clk 0:02:04.1]} 16. b4 {[%clk 0:02:03.4]} 16... axb3
{[%clk 0:02:02.6]} 17. Rc1 {[%clk 0:01:59]} 17... Rxa3 {[%clk 0:01:53.1]} 18.
Rxc3 {[%clk 0:01:54.5]} 18... Qa5 {[%clk 0:01:28.8]} 19. Rxb3 {[%clk 0:01:48.3]}
19... Qe1+ {[%clk 0:01:21.6]} 20. Kb2 {[%clk 0:01:45.3]} 20... Qa1+ {[%clk
0:01:19.4]} 21. Kc2 {[%clk 0:01:45.5]} 21... Ra2+ {[%clk 0:01:18.5]} 22. Kd3
{[%clk 0:01:44.9]} 22... Bxc4+ {[%clk 0:01:06.7]} 23. Qxc4 {[%clk 0:01:29]}
23... Qd1+ {[%clk 0:00:51.8]} 24. Ke3 {[%clk 0:01:15.6]} 24... Re8+ {[%clk
0:00:44.1]} 25. Kf4 {[%clk 0:01:15.5]} 25... Qxd6+ {[%clk 0:00:20.5]} 26. Kg4
{[%clk 0:01:05.7]} 26... Nd7 {[%clk 0:00:20.2]} 27. Nf3 {[%clk 0:01:04.2]} 27...
h5+ {[%clk 0:00:17.4]} 28. Kh3 {[%clk 0:01:03.7]} 28... g5 {[%clk 0:00:12.3]}
29. g4 {[%clk 0:00:56.7]} 29... hxg4+ {[%clk 0:00:12.1]} 30. Qxg4 {[%clk
0:00:57.6]} 30... Nc5 {[%clk 0:00:08.4]} 31. Re3 {[%clk 0:00:50.8]} 31... Rxe3
{[%clk 0:00:08.3]} 32. fxe3 {[%clk 0:00:51.7]} 32... Ra3 {[%clk 0:00:06.4]} 33.
Re1 {[%clk 0:00:48]} 33... Ne6 {[%clk 0:00:06.7]} 34. Kg2 {[%clk 0:00:46]} 34...
Kg7 {[%clk 0:00:07.1]} 35. h4 {[%clk 0:00:45.5]} 35... Qd5 {[%clk 0:00:06.9]}
36. Re2 {[%clk 0:00:38.8]} 36... c5 {[%clk 0:00:06.1]} 37. hxg5 {[%clk
0:00:33.9]} 37... Nxg5 {[%clk 0:00:05.2]} 38. e4 {[%clk 0:00:32.2]} 38... Qe6
{[%clk 0:00:04.2]} 39. Qxe6 {[%clk 0:00:30.4]} 39... fxe6 {[%clk 0:00:04.8]} 40.
Ne1 {[%clk 0:00:16.9]} 40... e5 {[%clk 0:00:05.3]} 41. Nc2 {[%clk 0:00:16.5]}
41... Rc3 {[%clk 0:00:05.3]} 42. Ne3 {[%clk 0:00:16.7]} 42... Kg6 {[%clk
0:00:05.1]} 43. Nd5 {[%clk 0:00:16.5]} 43... Rc4 {[%clk 0:00:05.6]} 44. Ne7+
{[%clk 0:00:14.2]} 44... Kf7 {[%clk 0:00:05.7]} 45. Nd5 {[%clk 0:00:13.9]} 45...
Rxe4 {[%clk 0:00:06.2]} 46. Rf2 {[%clk 0:00:13.8]} 46... Rg4+ {[%clk 0:00:06.1]}
47. Kf1 {[%clk 0:00:13.6]} 47... Ne4 {[%clk 0:00:05.8]} 48. Ra2 {[%clk
0:00:13.4]} 48... Ke6 {[%clk 0:00:06.1]} 49. Ne3 {[%clk 0:00:13.3]} 49... Rf4+
{[%clk 0:00:06.7]} 50. Ke2 {[%clk 0:00:13.2]} 50... Nc3+ {[%clk 0:00:07]} 51.
Kd3 {[%clk 0:00:13.8]} 51... Nxa2 {[%clk 0:00:07.9]} 52. Nc4 {[%clk 0:00:14.1]}
52... Nb4+ {[%clk 0:00:08.4]} 53. Kc3 {[%clk 0:00:14.1]} 53... Rxc4+ {[%clk
0:00:09.3]} 54. Kxc4 {[%clk 0:00:14.3]} 54... f5 {[%clk 0:00:10.2]} 55. Kxc5
{[%clk 0:00:14.9]} 55... f4 {[%clk 0:00:11.1]} 56. Kxb4 {[%clk 0:00:15.3]} 56...
Kf5 {[%clk 0:00:12]} 57. Kc3 {[%clk 0:00:16.1]} 57... e4 {[%clk 0:00:12.9]} 58.
Kd2 {[%clk 0:00:16.7]} 58... Kg4 {[%clk 0:00:13.8]} 59. Ke2 {[%clk 0:00:17.6]}
59... Kg3 {[%clk 0:00:14.4]} 60. Kf1 {[%clk 0:00:18]} 60... Kf3 {[%clk
0:00:14.8]} 61. Ke1 {[%clk 0:00:18.9]} 61... e3 {[%clk 0:00:15.7]} 62. Kf1
{[%clk 0:00:19.5]} 62... Ke4 {[%clk 0:00:15.7]} 63. Ke1 {[%clk 0:00:20.4]} 63...
f3 {[%clk 0:00:16.6]} 64. Kf1 {[%clk 0:00:20.9]} 64... Kd3 {[%clk 0:00:17]} 65.
Ke1 {[%clk 0:00:21.8]} 65... f2+ {[%clk 0:00:17]} 66. Kf1 {[%clk 0:00:22.7]}
66... Kd2 {[%clk 0:00:17.6]} 67. Kg2 {[%clk 0:00:23.5]} 67... Ke2 {[%clk
0:00:18]} 68. Kg3 {[%clk 0:00:23.8]} 68... f1=Q {[%clk 0:00:18.4]} 69. Kh4
{[%clk 0:00:24.7]} 69... Qf7 {[%clk 0:00:18.4]} 70. Kg3 {[%clk 0:00:25.6]} 70...
Kd2 {[%clk 0:00:18.1]} 71. Kh2 {[%clk 0:00:26.5]} 71... Qg6 {[%clk 0:00:17.9]}
0-1